lending/lending_fUSD_20240605
["ID","MTS","AMOUNT","RATE_DAILY","PERIOD"]
[328602377,1717600238347,-2163.88410623,0.0002858,13]
[328602378,1717600238358,-2584.05463731,0.0002858,13]
[328602379,1717600238369,-639.75,0.0002858,13]
[328602382,1717600238759,-4650.44314458,0.0002858,13]
[328602384,1717600238769,-53104.22453681,0.0002858,7]
[328602386,1717600238782,-307.21788745,0.0002858,7]
[328602389,1717600238793,-146099.62153294,0.0002858,7]
[328602391,1717600238804,-11356.5,0.0002858,7]
[328602393,1717600238815,-322.27319169,0.0002858,7]
[328602395,1717600238828,-3081.53750311,0.0002858,7]
[328602398,1717600240843,226.57668191,0.00021434,2]
[328602399,1717600241356,185.2,0.00024384,2]
[328602404,1717600241706,-5356.75977996,0.0002858,7]
[328602413,1717600242667,-33898.8069055,0.0002858,7]
[328602414,1717600242679,-503.4787228,0.0002858,7]
[328602439,1717600246410,-23537.35832661,0.0002858,7]
[328602441,1717600246422,-6177.28261805,0.0002858,7]
[328602443,1717600246433,-2291.71998046,0.0002858,7]
[328602445,1717600246444,-3119.1056024,0.0002858,7]
[328602456,1717600250638,831.99746101,0.00017259,2]
[328602457,1717600256841,226.57668191,0.0002219,2]
[328602458,1717600276842,226.57668191,0.0002219,2]
[328602459,1717600280153,469.99,0.00024404,2]
[328602460,1717600293550,155.0,0.0002,4]
[328602461,1717600296848,226.57668191,0.0002219,2]
[328602462,1717600301937,-1000.0,0.00032999,120]
[328602463,1717600301965,-620.25450476,0.00033,120]
[328602464,1717600301992,-699.94147727,0.00033,120]
[328602466,1717600320859,226.57668191,0.0002219,2]
[328602467,1717600344965,226.57668191,0.0002219,2]
[328602470,1717600760655,-1000.0,0.00031143,120]
[328602472,1717601134142,-177.62600431,0.00017072,2]
[328602473,1717601235116,-957.42566488,0.00016218,2]
[328602474,1717601235139,-750.63129965,0.00016727,2]
[328602475,1717601235163,-545.34025357,0.00016728,2]
[328602476,1717601235189,-4479.97409792,0.00016729,2]
[328602477,1717601236125,-6329.44874618,0.00016729,2]
[328602478,1717601245155,-1007.88301334,0.00016728,2]
[328602479,1717601319754,957.42566488,0.00015892,2]
[328602480,1717601337752,957.42566488,0.00015892,2]
[328602481,1717601346126,-345.45072342,0.00016133,2]
[328602482,1717601346153,-862.13999275,0.00016134,2]
[328602483,1717601346185,-155.0,0.00016135,2]
[328602484,1717601346212,-10584.85598513,0.00016136,2]
[328602485,1717601346243,-2610.75390442,0.00016393,2]
[328602486,1717601346270,-187.96966031,0.00016627,2]
[328602487,1717601346298,-289.73525073,0.00016728,2]
[328602488,1717601346327,-155.0,0.00016728,2]
[328602489,1717601346358,-20258.09102943,0.00016728,2]
[328602490,1717601346383,-2148.51431381,0.00016728,2]
[328602491,1717601352120,-1012.603011,0.00016052,2]
[328602492,1717601352141,-2850.881889,0.00016728,2]
[328602493,1717601352170,-6889.4813,0.00016728,2]
[328602494,1717601353114,-7877.81392189,0.00016728,2]
[328602495,1717601353134,-947.35180722,0.00016728,2]
[328602496,1717601353154,-35459.35989058,0.00017071,2]
[328602497,1717601353176,-217.49608431,0.00017072,2]
[328602498,1717601353196,-781.96,0.0001726,2]
[328602499,1717601353215,-150.99,0.00017534,2]
[328602500,1717601353236,-174.93,0.00024384,2]
[328602501,1717601353256,-250.0,0.000247,7]
[328602502,1717601353276,-499.99,0.000247,2]
[328602503,1717601353298,-2373.46,0.00024795,2]
[328602504,1717601353320,-560.31,0.00024795,2]
[328602505,1717601353341,-5428.641296,0.00025,2]
[328602506,1717601359489,2913.97629997,0.00015892,2]
[328602507,1717601359515,17344.11472946,0.00015892,2]
[328602508,1717601360114,-8957.65546684,0.00025,2]
[328602509,1717601360135,-599.94303689,0.00025,2]
[328602510,1717601360155,-201.23748503,0.00025,2]
[328602511,1717601360176,-1250.0,0.00025,2]
[328602512,1717601360196,-1304.7,0.00025008,2]
[328602513,1717601361087,-340.74,0.00025178,2]
[328602514,1717601361108,-300.0,0.0002531,2]
[328602515,1717601361130,-300.0,0.0002531,2]
[328602516,1717601361218,289.73525073,0.00015892,2]
[328602517,1717601361742,957.42566488,0.00015097,2]
[328602518,1717601361916,160.0,0.00015892,2]
[328602519,1717601362399,2610.75390442,0.00015574,2]
[328602520,1717601365023,947.35180722,0.00015892,2]
[328602521,1717601366732,2854.48862657,0.00015892,2]
[328602522,1717601369463,14.72920398,0.000201,2]
[328602523,1717601369484,211.84747793,0.000201,2]
[328602524,1717601375748,879.05619343,0.00015097,2]
[328602525,1717601378374,285.9507479,0.00015574,2]
[328602526,1717601379515,20258.09102943,0.00015892,2]
[328602527,1717601381215,289.73525073,0.00015892,2]
[328602528,1717601389004,275.51072769,0.00015892,2]
[328602529,1717601391463,226.57668191,0.0002219,2]
[328602530,1717601395255,289.73525073,0.00015892,2]
[328602531,1717601399497,20258.09102943,0.00015892,2]
[328602532,1717601403040,4467.30344529,0.00022429,2]
[328602533,1717601406998,627.30766186,0.00015892,2]
[328602534,1717601409480,226.57668191,0.0002219,2]
[328602535,1717601413232,398.74185088,0.00015892,2]
[328602536,1717601419512,11892.84098212,0.00015892,2]
[328602537,1717601419539,2473.89596429,0.00015892,2]
[328602538,1717601431461,226.57668191,0.0002219,2]
[328602556,1717601432922,-305.89,0.00025932,2]
[328602557,1717601432931,-189.65,0.00025962,2]
[328602558,1717601432941,-661.22,0.00025967,3]
[328602559,1717601432950,-9940.37815547,0.00025977,2]
[328602560,1717601432961,-3743.35663518,0.00025977,2]
[328602561,1717601432975,-2953.58111738,0.00025977,2]
[328602562,1717601435602,-7252.68409197,0.00025977,2]
[328602564,1717601435611,-250.0,0.00026003,2]
[328602565,1717601435620,-126.18510803,0.00026106,2]
[328602567,1717601435632,-44.45489197,0.00026106,2]
[328602569,1717601435641,-161.23,0.00026209,2]
[328602571,1717601435650,-167.78,0.00026304,2]
[328602573,1717601435660,-452.55518761,0.00026332,2]
[328602576,1717601435669,-150.0,0.0002639,2]
[328602579,1717601435678,-1000.0,0.00026407,2]
[328602582,1717601435688,-1000.0,0.00026407,3]
[328602585,1717601435697,-598.36,0.00026407,2]
[328602588,1717601435706,-250.0,0.00026437,2]
[328602591,1717601435715,-6835.9941,0.00026518,2]
[328602594,1717601435724,-310.63956836,0.00026618,2]
[328602597,1717601435737,-5871.21043164,0.00026618,2]
[328602600,1717601435747,-752.03196948,0.00026628,2]
[328602603,1717601435756,-500.42086643,0.00026891,2]
[328602606,1717601435765,-300.0,0.00026892,2]
[328602608,1717601435774,-1335.73,0.00026926,2]
[328602610,1717601435783,-560.31,0.00027058,2]
[328602612,1717601435792,-167.9,0.00027127,2]
[328602614,1717601435802,-2310.52757126,0.000274,2]
[328602616,1717601435811,-156.26845816,0.00027583,2]
[328602618,1717601435820,-154.36965858,0.0002768,2]
[328602620,1717601435829,-7056.57065676,0.00027746,2]
[328602622,1717601435838,-1304.7,0.00027747,2]
[328602624,1717601435848,-153.60165595,0.00027807,2]
[328602625,1717601435857,-150.0,0.00027836,2]
[328602627,1717601435866,-150.0,0.00027836,2]
[328602629,1717601435875,-150.0,0.00027836,2]
[328602631,1717601435884,-150.0,0.00027836,2]
[328602633,1717601435893,-150.0,0.00027836,2]
[328602635,1717601435902,-334.35,0.00027836,2]
[328602637,1717601435912,-164.02,0.00027945,2]
[328602639,1717601435921,-1058.09,0.00027945,2]
[328602641,1717601435930,-164.02,0.00027945,2]
[328602643,1717601435939,-164.02,0.00027945,2]
[328602645,1717601435949,-358.0,0.00027985,2]
[328602647,1717601435958,-975.0,0.00027985,2]
[328602649,1717601435967,-186.43,0.00027987,2]
[328602651,1717601435978,-226.42628252,0.00028,2]
[328602653,1717601435988,-1101.84233793,0.00028008,2]
[328602655,1717601435998,-1000.0,0.000281,2]
[328602657,1717601436007,-1390.67848297,0.0002818,2]
[328602659,1717601436016,-569.06988144,0.0002818,2]
[328602661,1717601436026,-3704.2964,0.0002818,2]
[328602663,1717601436036,-1000.0,0.000282,2]
[328602665,1717601436045,-155.13751648,0.00028238,2]
[328602667,1717601436055,-708.4248,0.0002828,2]
[328602669,1717601436064,-39586.41947839,0.0002828,2]
[328602670,1717601436077,-40996.39892161,0.0002828,2]
[328602671,1717601436086,-325.42886537,0.00028281,2]
[328602672,1717601436095,-284.40126792,0.00028281,2]
[328602673,1717601436105,-3000.0,0.0002829,2]
[328602674,1717601436114,-154.36965858,0.0002832,2]
[328602675,1717601436124,-284.4012679,0.00028337,2]
[328602676,1717601436133,-1390.67848296,0.00028371,2]
[328602677,1717601436142,-569.06988144,0.00028371,2]
[328602678,1717601436151,-3299.7498,0.0002838,2]
[328602679,1717601436161,-196235.6348,0.0002838,2]
[328602680,1717601436170,-155.60473159,0.00028381,2]
[328602681,1717601436179,-284.4012679,0.00028392,2]
[328602682,1717601436188,-1000.0,0.000284,2]
[328602683,1717601436197,-284.4012679,0.00028448,2]
[328602684,1717601436206,-300.0,0.00028474,2]
[328602685,1717601436216,-500.0,0.00028479,4]
[328602686,1717601436225,-500.0,0.00028479,4]
[328602687,1717601436237,-547.88,0.00028479,4]
[328602688,1717601436248,-547.88,0.00028479,4]
[328602689,1717601436257,-704.53,0.00028479,4]
[328602690,1717601436267,-704.53,0.00028479,4]
[328602691,1717601436276,-591.5625631,0.00028479,4]
[328602692,1717601436286,-569.05191891,0.00028479,4]
[328602693,1717601436295,-500.0,0.00028479,4]
[328602694,1717601436304,-500.0,0.00028479,4]
[328602695,1717601436452,-500.0,0.00028479,4]
[328602696,1717601436473,-500.0,0.00028479,4]
[328602697,1717601436485,-500.0,0.00028479,4]
[328602698,1717601436495,-676.1,0.00028479,4]
[328602699,1717601436504,-676.1,0.00028479,4]
[328602700,1717601436514,-500.0,0.00028479,4]
[328602701,1717601436523,-322.06362242,0.00028479,4]
[328602702,1717601436533,-500.0,0.00028479,4]
[328602703,1717601436543,-553.84,0.00028479,4]
[328602704,1717601436552,-553.84,0.00028479,4]
[328602705,1717601436562,-500.0,0.00028479,4]
[328602706,1717601436572,-500.0,0.00028479,4]
[328602707,1717601436582,-500.0,0.00028479,4]
[328602708,1717601436592,-500.0,0.00028479,4]
[328602709,1717601436601,-500.0,0.00028479,4]
[328602710,1717601436611,-500.0,0.00028479,4]
[328602711,1717601436620,-500.0,0.00028479,2]
[328602712,1717601436630,-500.0,0.00028479,2]
[328602713,1717601436640,-577.06,0.00028479,4]
[328602714,1717601436649,-577.06,0.00028479,4]
[328602715,1717601436658,-504.85452219,0.00028479,4]
[328602716,1717601436668,-500.0,0.00028479,4]
[328602717,1717601436678,-500.0,0.00028479,4]
[328602718,1717601436688,-500.0,0.00028479,4]
[328602719,1717601436698,-509.26606258,0.00028479,4]
[328602720,1717601436708,-500.0,0.00028479,4]
[328602721,1717601436718,-500.0,0.00028479,4]
[328602722,1717601436728,-500.0,0.00028479,4]
[328602723,1717601436739,-549.35518387,0.00028479,4]
[328602724,1717601436749,-500.0,0.00028479,4]
[328602725,1717601436759,-511.42018941,0.00028479,4]
[328602726,1717601436769,-500.0,0.00028479,4]
[328602727,1717601436779,-500.0,0.00028479,4]
[328602728,1717601436789,-500.0,0.00028479,4]
[328602729,1717601436798,-521.59209039,0.00028479,4]
[328602730,1717601436808,-500.0,0.00028479,4]
[328602731,1717601436818,-449.82562431,0.00028479,4]
[328602732,1717601436828,-824.30843045,0.0002848,2]
[328602733,1717601436838,-38207.1888,0.0002848,2]
[328602734,1717601436847,-6351.3632277,0.000285,2]
[328602735,1717601436857,-185.61446945,0.00028503,2]
[328602736,1717601436867,-284.4012679,0.00028503,2]
[328602737,1717601436878,-153.60165595,0.00028544,2]
[328602738,1717601436888,-153.57125837,0.00028555,2]
[328602739,1717601436899,-1390.67848296,0.00028562,2]
[328602740,1717601436908,-569.06988144,0.00028562,2]
[328602741,1717601436920,-151.75,0.0002857,2]
[328602742,1717601436930,-151.75,0.0002857,2]
[328602743,1717601436942,-151.75,0.0002857,2]
[328602744,1717601436952,-151.75,0.0002857,2]
[328602745,1717601436962,-10736.302688,0.00028578,4]
[328602746,1717601436972,-150.0,0.00028579,10]
[328602747,1717601436985,-500.0,0.00028579,4]
[328602748,1717601436995,-500.0,0.00028579,4]
[328602749,1717601437005,-500.0,0.00028579,4]
[328602750,1717601437015,-500.0,0.00028579,4]
[328602751,1717601437025,-500.0,0.00028579,4]
[328602752,1717601437034,-500.0,0.00028579,4]
[328602753,1717601437043,-500.0,0.00028579,4]
[328602754,1717601437052,-500.0,0.00028579,4]
[328602755,1717601437061,-500.0,0.00028579,4]
[328602756,1717601437071,-535.63211888,0.00028579,4]
[328602757,1717601437080,-493.41330642,0.00028579,4]
[328602758,1717601437089,-505.7,0.00028579,4]
[328602759,1717601437099,-3271.68,0.00028579,4]
[328602760,1717601437108,-505.7,0.00028579,4]
[328602761,1717601437118,-3271.68,0.00028579,4]
[328602762,1717601437128,-505.7,0.00028579,4]
[328602763,1717601437137,-3271.68,0.00028579,4]
[328602764,1717601437147,-3225.84,0.00028579,4]
[328602765,1717601437157,-505.7,0.00028579,4]
[328602766,1717601437167,-3271.68,0.00028579,4]
[328602767,1717601437176,-514.60294029,0.00028579,4]
[328602768,1717601437186,-1052.91160684,0.00028579,4]
[328602774,1717601438908,-500.42086643,0.00025961,2]
[328602775,1717601438918,-2147.81518357,0.00027985,2]
[328602778,1717601438929,-1021.78814945,0.00027985,2]
[328602795,1717601439125,-20930.3999992,0.00027985,2]
[328602796,1717601439137,-2778.97790447,0.00027985,2]
[328602797,1717601439149,-998.59473456,0.00027985,2]
[328602798,1717601439160,-560.15048795,0.00027985,2]
[328602799,1717601439172,-356.265,0.00027985,2]
[328602800,1717601439183,-9221.0085408,0.00027985,2]
[328602801,1717601439193,-500.0,0.00028479,4]
[328602802,1717601439203,-500.0,0.00028479,4]
[328602803,1717601439212,-500.0,0.00028479,4]
[328602804,1717601439221,-500.0,0.00028479,4]
[328602805,1717601439233,-513.409368,0.00028479,4]
[328602806,1717601439243,-2172.92839316,0.00028579,4]
[328602807,1717601439253,-505.7,0.00028579,4]
[328602808,1717601439262,-3271.68,0.00028579,4]
[328602809,1717601439272,-3225.84,0.00028579,4]
[328602810,1717601439281,-533.43367234,0.00028579,4]
[328602811,1717601439290,-505.7,0.00028579,4]
[328602812,1717601439299,-3271.68,0.00028579,4]
[328602813,1717601439309,-3225.84,0.00028579,4]
[328602814,1717601439318,-1279.44,0.00028579,4]
[328602815,1717601439327,-505.7,0.00028579,4]
[328602816,1717601439337,-3225.84,0.00028579,4]
[328602817,1717601439346,-1279.44,0.00028579,4]
[328602818,1717601439355,-3271.68,0.00028579,4]
[328602819,1717601439365,-3225.84,0.00028579,4]
[328602820,1717601439375,-1279.44,0.00028579,4]
[328602821,1717601439390,-3225.84,0.00028579,4]
[328602822,1717601439399,-1279.44,0.00028579,4]
[328602823,1717601439409,-1279.44,0.00028579,4]
[328602824,1717601439419,-1279.44,0.00028579,4]
[328602825,1717601439430,-500.0,0.00028579,4]
[328602826,1717601439440,-500.0,0.00028579,4]
[328602827,1717601439449,-500.0,0.00028579,4]
[328602828,1717601439459,-500.0,0.00028579,4]
[328602829,1717601439468,-500.0,0.00028579,4]
[328602830,1717601439478,-500.0,0.00028579,4]
[328602831,1717601439491,-500.0,0.00028579,4]
[328602832,1717601439500,-500.0,0.00028579,4]
[328602833,1717601439509,-513.0468794,0.00028579,4]
[328602834,1717601439519,-522.09802644,0.00028579,4]
[328602835,1717601439528,-500.0,0.00028579,4]
[328602836,1717601439537,-187.42488193,0.00028579,4]
[328602837,1717601439546,-2481.71,0.00028579,4]
[328602838,1717601439556,-547.88,0.00028579,4]
[328602839,1717601439565,-2481.71,0.00028579,4]
[328602840,1717601439575,-547.88,0.00028579,4]
[328602841,1717601439584,-2481.71,0.00028579,4]
[328602842,1717601439593,-2481.71,0.00028579,4]
[328602843,1717601439602,-547.88,0.00028579,4]
[328602844,1717601439612,-2481.71,0.00028579,4]
[328602845,1717601439621,-4216.85,0.00028579,4]
[328602846,1717601439630,-547.88,0.00028579,4]
[328602847,1717601439640,-4216.85,0.00028579,4]
[328602848,1717601439650,-2481.71,0.00028579,4]
[328602849,1717601439659,-4216.85,0.00028579,4]
[328602850,1717601439669,-547.88,0.00028579,4]
[328602851,1717601439679,-2481.71,0.00028579,4]
[328602852,1717601439688,-4216.85,0.00028579,4]
[328602853,1717601439698,-500.0,0.00028579,4]
[328602854,1717601439708,-4216.85,0.00028579,4]
[328602855,1717601439718,-276.41472635,0.00028579,4]
[328602856,1717601439727,-4216.85,0.00028579,4]
[328602857,1717601439740,-500.0,0.00028579,4]
[328602858,1717601439749,-500.0,0.00028579,4]
[328602859,1717601439758,-4216.85,0.00028579,4]
[328602860,1717601439768,-500.0,0.00028579,4]
[328602861,1717601439777,-500.0,0.00028579,4]
[328602862,1717601439787,-500.0,0.00028579,4]
[328602863,1717601439797,-500.0,0.00028579,4]
[328602864,1717601439806,-500.0,0.00028579,4]
[328602865,1717601439816,-500.0,0.00028579,4]
[328602866,1717601439826,-620.07168283,0.00028579,4]
[328602867,1717601439835,-500.0,0.00028579,4]
[328602868,1717601439845,-1251.11,0.00028579,4]
[328602869,1717601439854,-500.0,0.00028579,4]
[328602870,1717601439864,-1251.11,0.00028579,4]
[328602871,1717601439874,-641.90500164,0.00028579,4]
[328602872,1717601439884,-1251.11,0.00028579,4]
[328602873,1717601439894,-500.0,0.00028579,4]
[328602874,1717601439903,-360.98328447,0.00028579,4]
[328602875,1717601439913,-1251.11,0.00028579,4]
[328602876,1717601439923,-1251.11,0.00028579,4]
[328602877,1717601439933,-1251.11,0.00028579,4]
[328602878,1717601439943,-1051.57,0.00028579,4]
[328602879,1717601439953,-1051.57,0.00028579,4]
[328602880,1717601439963,-563.16,0.00028579,4]
[328602881,1717601439973,-1051.57,0.00028579,4]
[328602882,1717601439985,-563.16,0.00028579,4]
[328602883,1717601439995,-1051.57,0.00028579,4]
[328602884,1717601440005,-704.53,0.00028579,4]
[328602885,1717601440015,-563.16,0.00028579,4]
[328602886,1717601440025,-1051.57,0.00028579,4]
[328602887,1717601440035,-704.53,0.00028579,4]
[328602888,1717601440046,-1051.57,0.00028579,4]
[328602889,1717601440056,-563.16,0.00028579,4]
[328602890,1717601440066,-704.53,0.00028579,4]
[328602891,1717601440076,-563.16,0.00028579,4]
[328602892,1717601440087,-1972.62,0.00028579,4]
[328602893,1717601440097,-704.53,0.00028579,4]
[328602894,1717601440107,-563.16,0.00028579,4]
[328602895,1717601440116,-1972.62,0.00028579,4]
[328602896,1717601440126,-704.53,0.00028579,4]
[328602897,1717601440136,-1972.62,0.00028579,4]
[328602898,1717601440147,-1972.62,0.00028579,4]
[328602899,1717601440158,-1972.62,0.00028579,4]
[328602900,1717601440168,-1972.62,0.00028579,4]
[328602901,1717601440178,-1972.62,0.00028579,4]
[328602902,1717601440189,-12021.82,0.00028579,4]
[328602903,1717601440200,-500.0,0.00028579,4]
[328602904,1717601440211,-500.0,0.00028579,4]
[328602905,1717601440221,-5725.6029567,0.00028579,4]
[328602935,1717601441671,-500.0,0.00028479,4]
[328602937,1717601441681,-500.0,0.00028479,4]
[328602939,1717601441691,-500.0,0.00028479,4]
[328602941,1717601441700,-500.0,0.00028479,4]
[328602943,1717601441709,-169.98125819,0.00028503,2]
[328602945,1717601441718,-327.75734265,0.0002857,2]
[328602947,1717601441728,-2858.53701204,0.00028579,4]
[328602950,1717601441743,-2742.89048887,0.00028579,4]
[328602981,1717601442051,-694.78954239,0.00028579,4]
[328602983,1717601442061,-110.94692806,0.00028579,4]
[328602985,1717601442073,-917.35471676,0.00028579,4]
[328602987,1717601442085,-10993.51835518,0.00028579,4]
[328602990,1717601442095,-178.11879247,0.00028579,4]
[328602991,1717601442104,-955.08649789,0.00028579,4]
[328602994,1717601442116,-1752.87740409,0.00028579,4]
[328602996,1717601442127,-301.84427738,0.00028579,4]
[328602998,1717601442138,-250.92531775,0.00028579,4]
[328603000,1717601442149,-8761.08650289,0.00028579,4]
[328603002,1717601442160,-12021.82,0.00028579,4]
[328603004,1717601442170,-12021.82,0.00028579,4]
[328603006,1717601442180,-12021.82,0.00028579,4]
[328603008,1717601442189,-500.0,0.00028579,4]
[328603010,1717601442198,-340.93167959,0.00028579,4]
[328603012,1717601442208,-500.0,0.00028579,4]
[328603014,1717601442218,-500.0,0.00028579,4]
[328603016,1717601442227,-500.0,0.00028579,4]
[328603018,1717601442240,-500.0,0.00028579,4]
[328603020,1717601442249,-500.0,0.00028579,4]
[328603022,1717601442259,-500.0,0.00028579,4]
[328603024,1717601442268,-500.0,0.00028579,4]
[328603026,1717601442277,-500.0,0.00028579,4]
[328603028,1717601442286,-500.0,0.00028579,4]
[328603029,1717601442295,-500.0,0.00028579,4]
[328603030,1717601442304,-500.0,0.00028579,4]
[328603031,1717601442313,-583.28426837,0.00028579,4]
[328603032,1717601442322,-500.0,0.00028579,4]
[328603033,1717601442332,-500.0,0.00028579,4]
[328603034,1717601442341,-500.0,0.00028579,4]
[328603035,1717601442350,-500.0,0.00028579,4]
[328603036,1717601442360,-500.0,0.00028579,4]
[328603037,1717601442369,-500.0,0.00028579,4]
[328603038,1717601442380,-500.0,0.00028579,4]
[328603039,1717601442393,-500.0,0.00028579,4]
[328603040,1717601442402,-613.96386191,0.00028579,4]
[328603041,1717601442412,-500.0,0.00028579,4]
[328603042,1717601442423,-500.0,0.00028579,4]
[328603043,1717601442433,-500.0,0.00028579,4]
[328603044,1717601442442,-500.0,0.00028579,4]
[328603045,1717601442452,-500.0,0.00028579,4]
[328603046,1717601442462,-500.0,0.00028579,4]
[328603047,1717601442471,-243.22693186,0.00028579,4]
[328603048,1717601442480,-500.0,0.00028579,4]
[328603049,1717601442491,-500.0,0.00028579,4]
[328603050,1717601442500,-500.0,0.00028579,4]
[328603051,1717601442509,-500.0,0.00028579,4]
[328603052,1717601442517,-525.36994283,0.00028579,4]
[328603053,1717601442527,-500.0,0.00028579,4]
[328603054,1717601442536,-500.0,0.00028579,4]
[328603055,1717601442546,-626.58180744,0.00028579,4]
[328603056,1717601442556,-500.0,0.00028579,4]
[328603057,1717601442566,-450.27495858,0.00028579,4]
[328603058,1717601442576,-500.0,0.00028579,4]
[328603059,1717601442585,-500.0,0.00028579,4]
[328603060,1717601442595,-500.0,0.00028579,4]
[328603061,1717601442604,-500.0,0.00028579,4]
[328603062,1717601442614,-540.04817409,0.00028579,4]
[328603063,1717601442623,-580.22618854,0.00028579,4]
[328603064,1717601442632,-520.746459,0.00028579,4]
[328603065,1717601442641,-500.0,0.00028579,4]
[328603066,1717601442651,-519.12251136,0.00028579,4]
[328603067,1717601442661,-676.1,0.00028579,4]
[328603068,1717601442671,-500.0,0.00028579,4]
[328603069,1717601442680,-676.1,0.00028579,4]
[328603070,1717601442690,-500.0,0.00028579,4]
[328603071,1717601442699,-676.1,0.00028579,4]
[328603072,1717601442709,-500.0,0.00028579,4]
[328603073,1717601442718,-500.0,0.00028579,4]
[328603074,1717601442728,-676.1,0.00028579,4]
[328603075,1717601442742,-516.15628318,0.00028579,4]
[328603076,1717601442752,-500.0,0.00028579,4]
[328603077,1717601442762,-500.0,0.00028579,4]
[328603078,1717601442772,-676.1,0.00028579,4]
[328603079,1717601442781,-514.46023638,0.00028579,4]
[328603080,1717601442791,-324.26649577,0.00028579,4]
[328603081,1717601442800,-500.0,0.00028579,4]
[328603082,1717601442810,-553.84,0.00028579,4]
[328603083,1717601442819,-553.84,0.00028579,4]
[328603084,1717601442829,-500.0,0.00028579,4]
[328603085,1717601442839,-553.84,0.00028579,4]
[328603086,1717601442848,-500.0,0.00028579,4]
[328603087,1717601442858,-553.84,0.00028579,4]
[328603088,1717601442867,-500.0,0.00028579,4]
[328603089,1717601442877,-553.84,0.00028579,4]
[328603090,1717601442887,-500.0,0.00028579,4]
[328603091,1717601442896,-602.61370927,0.00028579,4]
[328603092,1717601442905,-500.0,0.00028579,4]
[328603093,1717601442915,-500.0,0.00028579,4]
[328603094,1717601442924,-500.0,0.00028579,4]
[328603095,1717601442933,-296.5270381,0.00028579,4]
[328603096,1717601442943,-500.0,0.00028579,4]
[328603097,1717601442952,-500.0,0.00028579,4]
[328603098,1717601442962,-283.18225538,0.00028579,4]
[328603099,1717601442971,-500.0,0.00028579,4]
[328603100,1717601442981,-500.0,0.00028579,4]
[328603101,1717601442991,-500.0,0.00028579,4]
[328603102,1717601443000,-588.53919141,0.00028579,4]
[328603103,1717601443010,-500.0,0.00028579,4]
[328603104,1717601443019,-500.0,0.00028579,4]
[328603105,1717601443029,-500.0,0.00028579,4]
[328603106,1717601443038,-500.0,0.00028579,4]
[328603107,1717601443048,-500.0,0.00028579,4]
[328603108,1717601443057,-500.0,0.00028579,4]
[328603109,1717601443066,-500.0,0.00028579,4]
[328603110,1717601443075,-2501.24,0.00028579,4]
[328603111,1717601443085,-500.0,0.00028579,4]
[328603112,1717601443094,-2501.24,0.00028579,4]
[328603113,1717601443103,-573.32128038,0.00028579,4]
[328603114,1717601443111,-2501.24,0.00028579,4]
[328603115,1717601443121,-218.7136645,0.00028579,4]
[328603116,1717601443130,-500.0,0.00028579,2]
[328603117,1717601443139,-500.0,0.00028579,2]
[328603118,1717601443148,-2501.24,0.00028579,4]
[328603119,1717601443157,-500.0,0.00028579,2]
[328603120,1717601443166,-2501.24,0.00028579,4]
[328603121,1717601443175,-385.42946986,0.00028579,2]
[328603122,1717601443185,-2501.24,0.00028579,4]
[328603123,1717601443194,-2501.24,0.00028579,4]
[328603124,1717601443203,-500.0,0.00028579,4]
[328603125,1717601443212,-577.06,0.00028579,4]
[328603126,1717601443222,-500.0,0.00028579,4]
[328603127,1717601443234,-500.0,0.00028579,4]
[328603128,1717601443244,-500.0,0.00028579,4]
[328603129,1717601443253,-500.0,0.00028579,4]